bitfinex/quotes_SOLUSD_20251119
["timestamp","ask_amount","ask_price","bid_price","bid_amount"]
[1763531404682,10.06156854,138.01,137.96,0.66]
[1763531404879,10.06156854,138.01,137.97,0.66]
[1763531405096,9.40156854,138.01,137.98,18.12096]
[1763531405476,9.40156854,138.01,137.98,18.78096]
[1763531405714,9.40156854,137.99,137.98,27.90978769]
[1763531406005,4.38,137.99,137.98,27.90978769]
[1763531406202,4.38,137.99,137.98,28.56978769]
[1763531406495,4.38,138.0,137.98,28.56978769]
[1763531407301,5.82044439,138.05,137.99,9.78882769]
[1763531407621,12.37220562,138.04,138.02,18.12096]
[1763531407779,19.80322157,138.03,138.02,18.12096]
[1763531408117,13.78156854,138.03,138.02,18.12096]
[1763531408267,14.44156854,138.03,138.02,18.12096]
[1763531408471,10.06156854,138.03,138.02,18.12096]
[1763531408772,14.44156854,138.03,138.02,18.12096]
[1763531409172,16.08322157,138.03,138.02,18.12096]
[1763531409397,14.44156854,138.03,138.02,18.12096]
[1763531409983,20.46381732,138.03,138.02,18.12096]
[1763531410997,14.44156854,138.03,138.02,18.12096]
[1763531411375,5.04,138.03,138.02,18.12096]
[1763531411578,14.44156854,138.03,138.02,18.12096]
[1763531411779,5.04,138.03,138.02,18.12096]
[1763531411982,13.78156854,138.03,138.02,18.12096]
[1763531412480,4.38,138.03,138.02,18.12096]
[1763531412673,13.78156854,138.03,138.02,18.12096]
[1763531412904,20.45381732,138.03,138.02,18.12096]
[1763531413885,11.05224878,138.03,138.02,18.12096]
[1763531414082,20.45381732,138.03,138.02,18.12096]
[1763531414802,22.42377416,138.03,138.02,18.12096]
[1763531414984,20.45274704,138.03,138.02,18.12096]
[1763531415184,14.43156854,138.03,138.02,18.12096]
[1763531415403,10.05156854,138.03,137.97,0.72]
[1763531415601,7.99220562,138.04,137.98,9.78882769]
[1763531415602,9.40156854,138.0,137.98,9.78882769]
[1763531415810,13.78156854,137.99,137.98,27.90978769]
[1763531416011,13.78156854,137.99,137.98,10.50882769]
[1763531416316,4.38,137.99,137.98,18.12096]
[1763531416509,4.38,137.99,137.98,28.62978769]
[1763531417388,6.02162162,138.04,137.98,28.62978769]
[1763531417695,13.78156854,138.03,138.0,27.90978769]
[1763531417897,9.40156854,138.01,138.0,18.12096]
[1763531418816,9.40156854,138.01,138.0,18.84096]
[1763531419113,9.40156854,138.01,138.0,18.12096]
[1763531419497,4.38,138.03,138.0,18.12096]
[1763531419820,9.40156854,138.02,138.0,18.84096]
[1763531419995,9.40156854,138.01,138.0,18.12096]
[1763531421997,6.02162162,138.02,138.0,18.12096]
[1763531422200,15.42319016,138.01,138.0,18.12096]
[1763531423002,6.02162162,138.01,138.0,18.12096]
[1763531423203,15.42319016,138.01,138.0,18.12096]
[1763531423403,9.40156854,138.01,138.0,18.12096]
[1763531425404,6.02162162,138.02,138.0,18.79096]
[1763531425743,9.40156854,138.01,138.0,18.12096]
[1763531425908,10.40162162,138.03,138.0,18.79096]
[1763531426101,0.66,138.04,138.0,18.79096]
[1763531426102,13.78156854,138.02,138.01,0.67]
[1763531427022,4.38,138.02,138.01,0.67]
[1763531427222,0.66,138.06,138.01,0.67]
[1763531427223,9.40156854,138.04,138.02,9.78882769]
[1763531427611,4.38,138.03,138.02,28.57978769]
[1763531428209,14.44156854,138.03,138.02,27.90978769]
[1763531428405,14.44156854,138.03,137.99,18.12096]
[1763531428710,14.44156854,138.03,138.02,18.12096]
[1763531428711,5.04,138.03,138.02,18.12096]
[1763531429521,4.38,138.03,138.02,18.12096]
[1763531429737,13.78156854,138.03,138.02,18.12096]
[1763531430624,4.38,138.03,138.02,18.12096]
[1763531430820,13.76156854,138.03,138.02,18.12096]
[1763531431020,0.66,138.03,138.02,18.12096]
[1763531431224,6.02162162,138.07,138.03,18.12096]
[1763531431416,13.76156854,138.06,138.04,10.45882769]
[1763531431621,6.02162162,138.08,138.07,18.12096]
[1763531431622,15.42319016,138.08,138.07,18.12096]
[1763531431931,14.44156854,138.08,138.07,18.12096]
[1763531432130,9.40156854,138.08,138.07,18.12096]
[1763531432435,13.78156854,138.08,138.07,18.12096]
[1763531432639,6.02162162,138.11,138.08,18.12096]
[1763531432640,9.40156854,138.09,138.08,18.12096]
[1763531432825,7.75081136,138.09,138.08,18.12096]
[1763531433230,4.38,138.09,138.08,18.12096]
[1763531433449,7.75081136,138.09,138.08,18.12096]
[1763531434127,8.41081136,138.09,138.08,18.12096]
[1763531434527,7.40162272,138.09,138.01,10.45882769]
[1763531434720,3.37081136,138.04,138.03,27.90978769]
[1763531434920,7.75081136,138.04,138.03,27.90978769]
[1763531435141,4.38,138.04,138.03,27.90978769]
[1763531435647,3.37081136,138.08,138.06,18.12096]
[1763531435858,4.38,138.07,138.06,18.12096]
[1763531436012,4.36,138.07,138.06,27.90978769]
[1763531436416,6.01442245,138.14,138.07,9.78882769]
[1763531436612,3.37081136,138.1,138.09,18.12096]
[1763531436828,7.73081136,138.1,138.09,18.12096]
[1763531437141,7.73081136,138.1,138.05,10.45882769]
[1763531437142,8.41081136,138.1,138.08,18.12096]
[1763531437344,0.66,138.14,138.09,9.78882769]
[1763531437555,17.44,138.16,138.09,10.45882769]
[1763531437757,0.76,138.18,138.16,18.12096]
[1763531438236,0.76,138.18,138.11,3.37081136]
[1763531438237,7.75081136,138.17,138.11,18.12096]
[1763531438539,4.38,138.17,138.13,18.12096]
[1763531438738,3.37081136,138.14,138.13,18.12096]
[1763531438944,13.76530817,138.14,138.13,18.12096]
[1763531439166,4.38,138.14,138.13,18.12096]
[1763531439330,4.38,138.14,138.13,18.79096]
[1763531439647,4.38,138.14,138.13,28.57978769]
[1763531441118,0.1,138.18,138.13,28.57978769]
[1763531441320,9.38530817,138.16,138.13,28.57978769]
[1763531441518,4.38,138.15,138.14,0.67]
[1763531442062,0.1,138.18,138.17,27.90978769]
[1763531442220,0.1,138.23,138.18,9.78882769]
[1763531442425,0.1,138.23,138.22,27.90978769]
[1763531442855,9.48530817,138.23,138.22,27.90978769]
[1763531443025,0.1,138.23,138.22,27.90978769]
[1763531443219,0.1,138.23,138.22,28.59978769]
[1763531443439,0.1,138.23,138.22,27.90978769]
[1763531443821,9.48530817,138.23,138.22,27.90978769]
[1763531444232,0.1,138.23,138.22,27.90978769]
[1763531444949,10.19530817,138.23,138.21,9.78882769]
[1763531445140,9.38530817,138.22,138.21,9.78882769]
[1763531445336,9.38530817,138.22,138.21,18.12096]
[1763531445337,10.09530817,138.22,138.21,18.12096]
[1763531446229,9.38530817,138.22,138.21,18.12096]
[1763531446826,6.31859932,138.22,138.21,18.12096]
[1763531447044,5.60859932,138.22,138.21,18.12096]
[1763531447733,6.31859932,138.22,138.21,18.12096]
[1763531449049,6.31859932,138.22,138.19,18.12096]
[1763531449222,10.69859932,138.21,138.19,18.12096]
[1763531449550,10.69859932,138.21,138.12,0.69]
[1763531449551,5.60859932,138.2,138.12,0.69]
[1763531449757,5.60859932,138.16,138.12,0.69]
[1763531450056,4.38,138.15,138.14,9.78882769]
[1763531450246,0.71,138.19,138.14,9.78882769]
[1763531450555,5.60859932,138.17,138.13,9.78882769]
[1763531450845,5.60859932,138.17,138.15,9.78882769]
[1763531451050,5.60859932,138.16,138.13,10.47882769]
[1763531451227,4.38,138.15,138.14,18.12096]
[1763531451429,4.38,138.15,138.13,9.78882769]
[1763531451949,4.38,138.15,138.14,18.12096]
[1763531452662,9.98859932,138.15,138.13,9.78882769]
[1763531452869,5.60859932,138.14,138.13,9.78882769]
[1763531453059,5.60859932,138.14,138.11,9.78882769]
[1763531453060,6.31859932,138.14,138.11,9.78882769]
[1763531453242,5.60859932,138.12,138.08,9.78882769]
[1763531453446,5.60859932,138.1,138.08,9.78882769]
[1763531453665,9.98859932,138.11,138.08,9.78882769]
[1763531453854,5.60859932,138.1,138.07,18.12096]
[1763531454162,5.60859932,138.1,138.08,9.78882769]
[1763531454465,5.09,138.11,138.02,5.60859932]
[1763531454466,6.31859932,138.09,138.03,5.60859932]
[1763531454639,6.31859932,138.09,138.03,0.69]
[1763531454640,5.60859932,138.08,138.03,0.69]
[1763531454963,4.38,138.07,138.05,18.12096]
[1763531455267,4.38,138.07,138.04,9.78882769]
[1763531455676,4.38,138.07,138.04,10.47882769]
[1763531456646,4.38,138.07,138.02,9.78882769]
[1763531456986,4.38,138.07,138.03,0.69]
[1763531457869,4.38,138.07,138.03,6.29859932]
[1763531458198,4.38,138.07,138.03,0.69]
[1763531458356,4.38,138.07,138.02,15.39742701]
[1763531458678,42.10543894,138.2,138.06,5.60859932]
[1763531458679,55.60859932,138.2,138.06,5.60859932]
[1763531458854,5.60859932,138.11,138.08,9.78882769]
[1763531459049,18.12096,138.09,138.07,5.60859932]
[1763531459270,18.12096,138.09,138.01,0.72458517]
[1763531459271,22.50096,138.09,138.06,5.60859932]
[1763531459469,4.38,138.09,138.06,9.78882769]
[1763531459681,4.38,138.09,138.05,9.78882769]
[1763531460087,4.38,138.09,138.06,0.69]
[1763531460283,9.98859932,138.09,138.06,9.78882769]
[1763531460586,4.38,138.09,138.06,0.69]
[1763531460788,0.71,138.13,138.07,0.69]
[1763531460971,0.71,138.16,138.08,9.78882769]
[1763531461164,4.38,138.15,138.08,15.39742701]
[1763531461361,23.72955932,138.13,138.1,9.78882769]
[1763531461892,5.60859932,138.11,138.08,9.78882769]
[1763531462096,5.60859932,138.1,138.08,9.78882769]
[1763531462293,4.38,138.09,138.06,15.39742701]
[1763531462461,4.38,138.1,138.08,9.78882769]
[1763531462868,22.50096,138.1,138.09,10.47882769]
[1763531464088,4.38,138.1,138.09,9.78882769]
[1763531464268,4.38,138.1,138.06,0.69]
[1763531464269,9.98859932,138.1,138.07,9.78882769]
[1763531464592,4.38,138.1,138.07,9.78882769]
[1763531464888,0.71,138.13,138.07,0.69]
[1763531465190,18.12096,138.1,138.07,0.69]
[1763531465495,9.98859932,138.09,138.06,9.78882769]
[1763531465668,9.98859932,138.09,138.07,0.69]
[1763531465669,28.10955932,138.09,138.07,0.69]
[1763531465868,4.38,138.09,138.07,0.69]
[1763531466990,4.38,138.09,138.08,9.78882769]
[1763531467609,4.38,138.09,138.05,6.29859932]
[1763531467909,4.38,138.09,138.06,10.47882769]
[1763531468206,9.98859932,138.09,138.06,10.47882769]
[1763531468378,18.12096,138.08,138.07,0.69]
[1763531468581,28.10955932,138.09,138.07,0.69]
[1763531469202,28.10955932,138.09,138.03,15.39742701]
[1763531469502,28.10955932,138.09,138.05,9.78882769]
[1763531469503,4.38,138.08,138.05,9.78882769]
[1763531469904,4.38,138.08,138.06,0.69]
[1763531470911,4.38,138.08,138.05,9.78882769]
[1763531471077,4.38,138.08,138.07,9.78882769]
[1763531472117,4.38,138.08,138.02,9.78882769]
[1763531472118,18.12096,138.06,138.02,9.78882769]
[1763531472422,4.36,138.05,138.03,9.78882769]
[1763531472578,4.36,138.05,138.01,0.65]
[1763531472779,9.96859932,138.05,138.01,0.65]
[1763531473809,9.96859932,138.05,137.99,5.60859932]
[1763531473810,5.60859932,138.04,138.02,9.78882769]
[1763531474180,10.67859932,138.05,138.02,9.78882769]
[1763531474477,0.71,138.08,138.01,9.78882769]
[1763531474693,5.60859932,138.05,138.01,10.43882769]
[1763531474902,4.36,138.04,138.01,10.43882769]
[1763531475094,9.96859932,138.04,138.01,10.43882769]
[1763531475296,9.96859932,138.04,138.02,0.65]
[1763531475297,4.36,138.04,138.02,0.65]
[1763531475486,4.36,138.04,138.01,0.65]
[1763531475880,9.96859932,138.04,138.01,0.65]
[1763531476082,0.71,138.03,137.99,10.43882769]
[1763531476295,10.67859932,138.04,138.0,0.65]
[1763531476803,18.83096,138.07,138.0,0.65]
[1763531477008,4.36,138.06,138.0,0.65]
[1763531477191,5.60859932,138.05,138.0,0.65]
[1763531477590,18.83096,138.07,138.02,9.78882769]
[1763531477787,18.12096,138.05,138.02,15.39742701]
[1763531478124,18.12096,138.05,138.04,9.78882769]
[1763531478313,0.71,138.09,138.04,9.78882769]
[1763531478614,18.12096,138.06,138.04,10.43882769]
[1763531479314,18.12096,138.05,138.04,10.43882769]
[1763531479485,22.48096,138.05,138.02,0.65]
[1763531479681,22.48096,138.05,138.04,9.78882769]
[1763531479882,10.67859932,138.05,138.01,10.43882769]
[1763531480102,10.67859932,138.05,138.02,9.78882769]
[1763531480103,9.96859932,138.05,138.02,9.78882769]
[1763531480295,9.96859932,138.05,138.01,10.43882769]
[1763531480296,4.36,138.05,138.01,10.43882769]
[1763531480500,4.36,138.05,138.02,0.65]
[1763531481125,18.12096,138.06,138.03,9.78882769]
[1763531481328,4.36,138.04,138.03,9.78882769]
[1763531481620,4.36,138.04,138.03,10.43882769]
[1763531482024,4.36,138.04,138.01,10.43882769]
[1763531482192,4.36,138.04,138.03,0.65]
[1763531482706,18.12096,138.06,138.03,6.25859932]
[1763531482918,22.48096,138.06,138.05,9.78882769]
[1763531483283,4.36,138.07,138.05,10.45882769]
[1763531483496,4.36,138.08,138.07,9.78882769]
[1763531483712,22.48096,138.08,138.07,9.78882769]
[1763531484014,22.48096,138.08,138.05,6.27859932]
[1763531484213,17.44,138.19,138.07,9.78882769]
[1763531484419,5.60859932,138.13,138.08,5.60859932]
[1763531484616,4.36,138.12,138.08,0.67]
[1763531484818,4.36,138.12,138.1,9.78882769]
[1763531485197,4.36,138.12,138.1,10.45882769]
[1763531485390,4.38,138.12,138.1,10.45882769]
[1763531485786,4.38,138.12,138.1,9.78882769]
[1763531486026,4.38,138.12,138.1,10.45882769]
[1763531486209,4.38,138.12,138.11,10.45882769]
[1763531486717,4.38,138.12,138.11,9.78882769]
[1763531487316,10.68859932,138.12,138.06,0.67]
[1763531487522,23.72955932,138.09,138.07,9.78882769]
[1763531487738,22.50096,138.09,138.05,9.78882769]
[1763531487900,22.50096,138.09,138.07,9.78882769]
[1763531488230,4.38,138.09,138.07,9.78882769]
[1763531488427,4.38,138.09,138.07,0.67]
[1763531488997,11.57396102,138.2,138.07,0.67]
[1763531489218,0.7,138.15,138.07,10.45882769]
[1763531489407,5.60859932,138.12,138.08,9.78882769]
[1763531489607,5.60859932,138.12,138.08,10.45882769]
[1763531489802,5.60859932,138.12,138.1,9.78882769]
[1763531490212,5.60859932,138.11,138.1,9.78882769]
[1763531490430,5.60859932,138.11,138.07,0.67]
[1763531490625,5.60859932,138.11,138.08,9.78882769]
[1763531490923,5.60859932,138.1,138.08,9.78882769]
[1763531491131,5.60859932,138.1,138.08,0.67]
[1763531491305,9.98859932,138.11,138.08,0.67]
[1763531491500,5.60859932,138.1,138.06,0.67]
[1763531491699,5.60859932,138.1,138.07,9.78882769]
[1763531492201,5.60859932,138.09,138.07,0.67]
[1763531492412,5.60859932,138.08,138.05,9.78882769]
[1763531492594,5.60859932,138.07,138.02,10.45882769]
[1763531492794,5.60859932,138.06,138.02,16.06742701]
[1763531492999,5.60859932,138.05,138.02,6.27859932]
[1763531493214,5.60859932,138.05,138.02,0.67]
[1763531493215,5.60859932,138.04,138.02,0.67]
[1763531493413,9.96859932,138.05,138.04,9.78882769]
[1763531493601,4.36,138.05,138.04,9.78882769]
[1763531493802,9.96859932,138.05,138.01,9.78882769]
[1763531494002,5.60859932,138.03,137.99,0.72469019]
[1763531494205,9.98859932,138.02,137.99,5.60859932]
[1763531494432,9.98859932,138.02,137.99,9.78882769]
[1763531494598,9.98859932,138.02,137.99,10.45882769]
[1763531495119,4.38,138.02,137.99,10.45882769]
[1763531495329,9.96859932,138.04,138.01,9.78882769]
[1763531495698,18.12096,138.07,138.03,9.78882769]
[1763531495903,5.60859932,138.08,138.03,15.39742701]
[1763531496114,5.60859932,138.08,138.05,9.78882769]
[1763531496318,5.60859932,138.07,138.05,9.78882769]
[1763531496523,4.36,138.08,138.04,0.67]
[1763531496700,9.96859932,138.08,138.05,9.78882769]
[1763531496899,9.98859932,138.08,138.05,9.78882769]
[1763531497119,5.60859932,138.08,138.05,0.67]
[1763531497512,4.36,138.07,138.05,0.67]
[1763531497829,4.36,138.07,138.02,9.78882769]
[1763531497830,5.60859932,138.06,138.02,9.78882769]
[1763531497999,5.06,138.07,138.02,10.45882769]
[1763531498503,4.36,138.07,138.04,9.78882769]
[1763531499428,18.12096,138.08,138.04,10.45882769]
[1763531499609,4.36,138.07,138.04,10.45882769]
[1763531499813,4.36,138.07,138.06,9.78882769]
[1763531501103,4.36,138.07,138.04,0.67]
[1763531501305,4.36,138.07,138.06,9.78882769]
[1763531502330,28.08955932,138.08,138.06,9.78882769]
[1763531502528,28.08955932,138.08,138.04,0.67]
[1763531502702,6.32859932,138.07,138.03,9.78882769]
[1763531502905,0.72,138.07,138.03,0.67]
[1763531503123,4.36,138.06,138.03,0.67]
[1763531504399,6.32859932,138.05,138.01,9.78882769]
[1763531504827,6.32859932,138.04,138.01,9.78882769]
[1763531505019,6.32859932,138.04,137.99,22.40071652]
[1763531505020,6.32859932,138.04,138.0,9.78882769]
[1763531505219,18.12096,138.05,137.99,7.00328951]
[1763531505220,0.72,138.03,137.99,9.78882769]
[1763531505535,4.36,138.04,138.0,0.67]
[1763531505844,23.72955932,138.04,137.99,16.1221172]
[1763531506002,0.72,138.05,138.01,5.60859932]
[1763531506003,18.12096,138.05,138.01,5.60859932]
[1763531506199,18.12096,138.05,138.02,9.78882769]
[1763531506402,18.12096,138.05,138.02,16.06742701]
[1763531506627,18.12096,138.05,138.02,10.45882769]
[1763531506840,6.51780652,138.06,138.01,9.78882769]
[1763531507045,0.72,138.04,138.01,9.78882769]
[1763531507807,104.3,138.13,138.01,9.78882769]
[1763531507808,110.2653617,138.13,138.02,2.82780652]
[1763531508012,0.72,138.08,138.04,9.78882769]
[1763531508217,4.36,138.08,138.04,10.45882769]
[1763531508834,8.45063876,138.08,138.04,10.45882769]
[1763531509207,4.36,138.08,138.04,13.82946645]
[1763531509444,5.08,138.08,138.04,10.45882769]
[1763531509627,4.36,138.08,138.06,9.78882769]
[1763531511334,22.48096,138.08,138.04,9.78882769]
[1763531511520,10.10785736,138.07,138.04,9.78882769]
[1763531511723,0.72,138.07,138.03,9.78882769]
[1763531512028,0.72,138.07,138.03,10.45882769]
[1763531512210,31.86881736,138.08,138.03,10.45882769]
[1763531512411,32.58881736,138.08,138.03,10.45882769]
[1763531512611,23.20096,138.08,138.03,10.45882769]
[1763531512835,32.58881736,138.08,138.03,10.45882769]
[1763531513834,32.58881736,138.08,138.03,9.78882769]
[1763531514032,32.58881736,138.08,138.04,0.67]
[1763531514220,32.58881736,138.08,138.05,9.78882769]
[1763531514615,4.36,138.07,138.03,19.17668505]
[1763531514816,18.12096,138.08,138.05,9.78882769]
[1763531515034,22.48096,138.08,138.07,9.78882769]
[1763531515434,0.72,138.1,138.07,9.78882769]
[1763531515623,5.08,138.1,138.07,9.78882769]
[1763531515941,23.20096,138.1,138.07,9.78882769]
[1763531516945,23.20096,138.1,138.06,9.78882769]
[1763531517243,23.20096,138.1,138.06,10.45882769]
[1763531517758,22.48096,138.12,138.07,19.84668505]
[1763531517942,22.48096,138.12,138.07,24.20668505]
[1763531518140,22.48096,138.12,138.09,9.78882769]
[1763531518328,18.12096,138.11,138.09,9.78882769]
[1763531518535,4.36,138.13,138.09,10.45882769]
[1763531518731,18.12096,138.11,138.09,10.45882769]
[1763531519135,9.38785736,138.15,138.11,9.78882769]
[1763531519319,18.12096,138.13,138.11,9.78882769]
[1763531519647,18.12096,138.13,138.11,10.45882769]
[1763531520252,0.72,138.12,138.07,10.05785736]
[1763531520440,10.10785736,138.12,138.08,9.78882769]
[1763531520644,9.38785736,138.11,138.08,9.78882769]
[1763531520833,10.10785736,138.11,138.08,9.78882769]
[1763531521044,10.10785736,138.11,138.07,9.78882769]
[1763531521045,10.10785736,138.1,138.07,9.78882769]
[1763531521437,0.72,138.1,138.06,19.17668505]
[1763531521750,0.72,138.09,138.06,9.78882769]
[1763531521930,0.72,138.09,138.05,19.17668505]
[1763531522128,0.72,138.09,138.05,10.45882769]
[1763531522329,0.72,138.09,138.01,28.23340253]
[1763531522330,9.38785736,138.07,138.03,14.14882769]
[1763531522546,9.38785736,138.08,138.03,14.14882769]
[1763531522723,4.36,138.08,138.03,14.14882769]
[1763531522924,4.36,138.08,138.03,24.20668505]
[1763531522925,14.46785736,138.08,138.03,24.20668505]
[1763531523130,4.36,138.08,138.05,9.38785736]
[1763531523327,22.48096,138.09,138.05,9.38785736]
[1763531523629,0.72,138.08,138.04,0.67]
[1763531523952,10.10785736,138.08,138.04,9.78882769]
[1763531524249,18.12096,138.06,138.03,14.14882769]
[1763531524445,18.12096,138.06,138.03,14.81882769]
[1763531524832,9.38785736,138.07,138.03,14.81882769]
[1763531525151,18.12096,138.07,138.04,0.67]
[1763531525348,18.12096,138.06,138.04,0.67]
[1763531525638,18.12096,138.06,138.03,23.53668505]
[1763531525848,18.12096,138.07,138.03,24.20668505]
[1763531526229,18.12096,138.06,138.04,19.84668505]
[1763531526430,4.36,138.09,138.05,9.38785736]
[1763531526644,10.10785736,138.12,138.07,9.78882769]
[1763531526826,5.9653617,138.17,138.07,19.17668505]
[1763531527132,0.72,138.16,138.1,19.17668505]
[1763531527342,4.36,138.15,138.1,19.17668505]
[1763531527546,0.72,138.19,138.15,9.78882769]
[1763531527867,13.74785736,138.21,138.16,9.38785736]
[1763531528038,13.74785736,138.21,138.15,19.84668505]
[1763531528240,9.38785736,138.2,138.15,19.84668505]
[1763531528642,9.38785736,138.18,138.14,9.78882769]
[1763531528937,9.38785736,138.19,138.14,19.84668505]
[1763531529147,9.38785736,138.19,138.15,0.67]
[1763531529148,5.08,138.19,138.15,0.67]
[1763531529448,0.72,138.21,138.17,9.78882769]
[1763531529643,4.36,138.2,138.15,14.41785736]
[1763531529849,31.86881736,138.2,138.16,9.78882769]
[1763531530049,32.58881736,138.2,138.16,9.78882769]
[1763531530348,23.20096,138.2,138.16,10.45882769]
[1763531530554,32.58881736,138.2,138.16,10.45882769]
[1763531531336,0.72,138.19,138.16,9.78882769]
[1763531531536,27.50881736,138.17,138.11,9.78882769]
[1763531531742,9.38785736,138.14,138.08,0.67]
[1763531531962,9.38785736,138.1,138.05,18.12096]
[1763531532133,22.48096,138.1,138.03,14.41785736]
[1763531532339,0.7,138.12,138.03,5.03]
[1763531532541,9.38785736,138.11,138.07,9.78882769]
[1763531532757,13.74785736,138.11,138.06,9.38785736]
[1763531533062,1.99999998,138.2,138.08,9.38785736]
[1763531533063,0.7,138.13,138.08,9.38785736]
[1763531533364,5.06,138.13,138.09,9.78882769]
[1763531533588,14.44785736,138.13,138.08,9.78882769]
[1763531533751,14.44785736,138.13,138.07,19.17668505]
[1763531533752,10.08785736,138.12,138.07,19.17668505]
[1763531534072,0.7,138.11,138.07,19.17668505]
[1763531534274,0.7,138.11,138.07,9.78882769]
[1763531534444,9.38785736,138.12,138.07,19.89668505]
[1763531534642,23.18096,138.13,138.07,19.89668505]
[1763531534643,22.48096,138.13,138.07,19.89668505]
[1763531534870,0.7,138.11,138.07,19.89668505]
[1763531535073,0.7,138.11,138.06,9.78882769]
[1763531535274,10.08785736,138.11,138.06,9.78882769]
[1763531535479,5.06,138.1,138.06,19.17668505]
[1763531535671,22.48096,138.1,138.06,19.17668505]
[1763531535872,4.36,138.1,138.06,19.89668505]
[1763531536284,22.48096,138.12,138.08,9.78882769]
[1763531536579,22.48096,138.12,138.08,19.89668505]
[1763531536754,0.7,138.11,138.05,10.50882769]
[1763531536959,10.08785736,138.11,138.06,9.38785736]
[1763531537275,31.86881736,138.12,138.06,10.10785736]
[1763531537478,22.48096,138.12,138.08,9.78882769]
[1763531537981,23.18096,138.12,138.08,9.78882769]
[1763531538367,32.56881736,138.12,138.08,9.78882769]
[1763531539070,9.38785736,138.09,138.05,9.78882769]
[1763531539386,4.36,138.09,138.05,9.78882769]
[1763531539558,4.36,138.09,138.02,22.48096]
[1763531539559,9.38785736,138.07,138.03,9.78882769]
[1763531539758,9.38785736,138.07,138.03,10.50882769]
[1763531540076,14.44785736,138.06,138.01,9.38785736]
[1763531540258,14.44785736,138.06,138.02,9.78882769]
[1763531540458,9.38785736,138.04,138.02,9.78882769]
[1763531540662,10.08785736,138.05,138.0,9.78882769]
[1763531540968,10.08785736,138.05,138.0,19.89668505]
[1763531540969,0.7,138.04,138.0,19.89668505]
[1763531541285,9.38785736,138.05,138.0,19.89668505]
[1763531541286,10.08785736,138.05,138.0,19.89668505]
[1763531541459,10.08785736,138.05,138.0,10.50882769]
[1763531541871,10.08785736,138.04,138.0,9.78882769]
[1763531542079,13.74785736,138.03,137.99,9.78882769]
[1763531542275,32.56881736,138.04,137.99,19.89668505]
[1763531542475,23.18096,138.04,137.99,19.89668505]
[1763531542680,18.12096,138.02,137.99,19.89668505]
[1763531542878,18.12096,138.02,138.0,10.07785736]
[1763531543280,4.36,138.04,138.01,0.69]
[1763531543484,18.12096,138.04,138.02,9.78882769]
[1763531543689,4.36,138.05,138.02,10.47882769]
[1763531543877,4.36,138.05,138.02,9.78882769]
[1763531544069,4.36,138.05,138.02,10.07785736]
[1763531544478,22.48096,138.07,138.04,9.78882769]
[1763531544798,4.36,138.07,138.04,9.78882769]
[1763531545797,4.36,138.07,138.0,4.36]
[1763531545798,10.06785736,138.06,138.0,13.74785736]
[1763531545972,10.06785736,138.06,138.01,10.07785736]
[1763531546173,0.68,138.06,138.01,6.4848609]
[1763531546389,0.68,138.06,138.02,9.38785736]
[1763531546990,0.68,138.06,138.01,9.38785736]
[1763531547172,10.06785736,138.06,138.01,9.38785736]
[1763531547386,10.06785736,138.06,138.0,13.16135736]
[1763531547780,0.68,138.06,138.01,19.17668505]
[1763531547977,10.06785736,138.06,138.01,19.17668505]
[1763531548176,0.68,138.06,138.01,19.17668505]
[1763531548672,14.42785736,138.06,138.01,19.17668505]
[1763531548866,9.38785736,138.05,138.01,9.78882769]
[1763531549070,0.68,138.05,138.01,9.78882769]
[1763531549271,0.68,138.05,138.01,19.17668505]
[1763531549471,0.68,138.05,138.04,9.38785736]
[1763531550574,18.12096,138.08,138.04,9.38785736]
[1763531550774,18.12096,138.08,138.07,9.38785736]
[1763531550986,22.48096,138.08,138.07,9.38785736]
[1763531551191,4.36,138.08,138.07,9.38785736]
[1763531551577,5.04,138.08,138.07,9.38785736]
[1763531552271,4.36,138.08,138.07,9.38785736]
[1763531552581,5.04,138.08,138.06,9.38785736]
[1763531552780,4.36,138.08,138.07,9.38785736]
[1763531553206,18.12096,138.1,138.07,9.38785736]
[1763531553377,4.36,138.11,138.05,0.45]
[1763531553702,18.80096,138.12,138.1,9.38785736]